bitfinex-derivatives/quotes_ETHF0:USTF0_20250612
["timestamp","ask_amount","ask_price","bid_price","bid_amount"]
[1749690092035,3.2078,2777.8,2777.6,0.71983]
[1749690092230,0.71984,2777.7,2777.5,0.71986]
[1749690092427,1.79976,2777.4,2776.8,0.6278]
[1749690092633,0.0620172,2777.2,2776.8,0.6278]
[1749690092934,0.72002,2776.9,2776.8,0.6278]
[1749690093133,0.72008,2776.7,2776.6,0.6127]
[1749690093427,0.72006,2776.8,2776.7,0.72008]
[1749690093639,0.0620172,2777.2,2776.6,2.57279]
[1749690093831,0.72008,2776.7,2776.6,2.57279]
[1749690094033,0.72007,2776.8,2776.6,2.5728]
[1749690094534,0.72008,2776.7,2776.6,1.8527]
[1749690095336,0.72008,2776.7,2776.6,0.6127]
[1749690095535,0.7201,2776.6,2776.5,0.00540015]
[1749690098644,1.9701,2776.6,2776.5,0.00540015]
[1749690099444,2.90362545,2776.6,2776.5,0.00540015]
[1749690100734,1.65362545,2776.6,2776.5,0.00540015]
[1749690100941,0.7201,2776.6,2776.5,0.00540015]
[1749690101540,0.7201,2776.6,2776.5,0.72553015]
[1749690101742,0.7201,2776.6,2776.5,0.00540015]
[1749690102245,1.9224,2776.6,2776.5,0.00540015]
[1749690102743,0.7201,2776.6,2776.5,0.00540015]
[1749690107046,0.7201,2776.6,2775.8,3.2078]
[1749690107047,0.72023,2776.1,2776.0,0.72024]
[1749690107744,0.72023,2776.1,2776.0,1.2514]
[1749690108944,0.72023,2776.1,2775.8,0.00540015]
[1749690108945,3.2078,2776.1,2775.8,0.00540015]
[1749690109149,0.72028,2775.9,2775.8,0.00540015]
[1749690109446,0.72044,2775.3,2775.2,0.6234]
[1749690110348,0.6242,2775.5,2775.2,0.6234]
[1749690110548,5.18532,2775.8,2775.6,0.72034]
[1749690110744,5.18532,2775.8,2775.7,1.9021]
[1749690111242,0.72044,2775.3,2775.2,3.8312]
[1749690111644,0.72049,2775.1,2775.0,0.00540015]
[1749690113747,3.92829,2775.1,2775.0,0.00540015]
[1749690114050,0.72049,2775.1,2775.0,0.00540015]
[1749690114247,3.92829,2775.1,2775.0,0.00540015]
[1749690114452,5.18229,2775.1,2775.0,0.00540015]
[1749690116054,3.92829,2775.1,2775.0,0.00540015]
[1749690117450,3.2078,2775.1,2775.0,0.00540015]
[1749690117650,5.78798,2775.2,2775.0,0.72592015]
[1749690117651,5.18548,2775.2,2775.0,0.72592015]
[1749690117849,4.465,2775.2,2775.1,2.00069]
[1749690118051,0.35179572,2775.5,2775.1,2.00069]
[1749690118052,3.2078,2775.7,2775.1,2.5287]
[1749690118256,3.92815,2775.7,2775.5,0.72037]
[1749690118452,3.2078,2775.7,2775.6,0.72036]
[1749690118655,0.7203,2775.9,2775.3,1.2701]
[1749690118952,0.72031,2775.8,2775.6,0.72035]
[1749690119150,0.72031,2775.8,2775.7,1.2701]
[1749690119354,0.7203,2775.9,2775.7,1.99043]
[1749690119654,0.72031,2775.8,2775.7,1.2701]
[1749690119854,0.72031,2775.8,2775.7,1.99043]
[1749690120042,0.72029,2775.9,2775.7,1.99043]
[1749690120248,0.72029,2775.9,2775.8,1.2701]
[1749690120553,0.72029,2775.9,2775.6,0.72034]
[1749690120554,0.72035,2775.7,2775.5,3.92818]
[1749690120853,1.26075,2775.7,2775.6,1.99046]
[1749690121248,0.72036,2775.6,2775.5,3.2078]
[1749690121450,0.72044,2775.4,2775.2,4.4105]
[1749690121647,8.2132,2775.7,2775.2,4.4105]
[1749690121848,0.72043,2775.4,2775.2,5.13095]
[1749690122054,8.2132,2775.7,2775.2,5.13095]
[1749690122055,5.72575,2775.7,2775.3,1.2027]
[1749690122250,0.5404,2775.7,2775.6,0.72036]
[1749690122449,0.5404,2775.7,2775.6,3.92816]
[1749690125942,3.21320015,2776.3,2776.2,0.7202]
[1749690126147,0.00540015,2776.3,2776.2,0.7202]
[1749690126352,0.72558015,2776.3,2776.1,0.72022]
[1749690126548,0.72026,2776.0,2775.9,0.629]
[1749690126858,0.00540015,2776.3,2775.6,3.2078]
[1749690127156,0.72025,2776.1,2775.9,0.72026]
[1749690127456,0.72023,2776.1,2776.0,1.2428]
[1749690127651,0.72028,2775.9,2775.8,0.7203]
[1749690128552,3.21320015,2776.3,2775.3,3.2078]
[1749690128750,0.72044,2775.3,2775.2,2.4203]
[1749690130156,0.72044,2775.3,2775.2,1.2235]
[1749690131557,0.72044,2775.3,2775.2,0.5891]
[1749690131757,0.72049,2775.1,2775.0,3.21320015]
[1749690132158,0.72048,2775.2,2775.0,3.93369015]
[1749690132453,0.72046,2775.3,2775.2,0.72046]
[1749690132652,0.72047,2775.2,2775.1,0.72048]
[1749690132856,0.72049,2775.1,2775.0,3.93371015]
[1749690133056,0.72048,2775.2,2775.0,3.93371015]
[1749690133258,0.6494,2775.6,2775.0,0.72591015]
[1749690133554,0.72049,2775.2,2775.0,0.72591015]
[1749690133855,0.72045,2775.3,2775.0,0.00540015]
[1749690134157,0.72046,2775.2,2775.1,1.95878]
[1749690135059,0.72046,2775.2,2775.1,1.2383]
[1749690135264,0.72049,2775.1,2775.0,3.21320015]
[1749690135448,3.8572,2775.6,2775.0,0.00540015]
[1749690135648,0.72046,2775.3,2775.0,0.00540015]
[1749690135848,0.72046,2775.2,2775.1,0.72047]
[1749690136059,0.72046,2775.2,2775.1,1.95877]
[1749690136261,0.72042,2775.4,2775.3,0.72043]
[1749690136456,4.465,2775.5,2775.4,0.72041]
[1749690136758,4.465,2775.5,2775.1,1.2383]
[1749690136958,0.72043,2775.4,2775.3,0.72043]
[1749690137350,3.21320015,2776.3,2775.3,25.0508]
[1749690137555,3.21320015,2776.3,2775.5,3.2078]
[1749690137755,0.72039,2775.5,2775.4,1.863]
[1749690137958,0.72039,2775.5,2775.4,0.6071]
[1749690138154,0.72045,2775.3,2775.1,5.18418]
[1749690138453,1.80092,2775.6,2775.1,5.18418]
[1749690138454,0.72046,2775.2,2775.1,4.4637]
[1749690138849,0.72045,2775.3,2775.1,4.4637]
[1749690139157,1.2112,2775.8,2775.1,1.2559]
[1749690139361,0.7204,2775.5,2775.3,0.72044]
[1749690139560,0.7204,2775.5,2775.4,1.2559]
[1749690139858,4.465,2775.7,2775.1,3.92828]
[1749690139859,0.72045,2775.3,2775.1,3.92828]
[1749690140059,0.72045,2775.3,2775.2,1.2084]
[1749690141061,0.72045,2775.3,2775.2,1.92886]
[1749690141266,7.6728,2775.7,2775.2,1.2084]
[1749690141267,0.72042,2775.4,2775.2,1.2084]
[1749690141560,0.72037,2775.6,2775.5,0.72038]
[1749690141861,0.72037,2775.6,2775.2,1.2084]
[1749690142061,0.72036,2775.6,2775.5,0.72037]
[1749690142364,0.72039,2775.5,2775.3,0.72043]
[1749690142663,0.72039,2775.5,2775.4,1.2084]
[1749690143563,0.72039,2775.5,2775.4,1.92881]
[1749690144160,0.72039,2775.5,2775.4,1.2084]
[1749690144853,0.72042,2775.4,2775.1,3.2078]
[1749690145058,0.72042,2775.4,2775.3,0.72044]
[1749690145458,0.72044,2775.3,2775.2,1.2818]
[1749690146261,0.72049,2775.1,2775.0,1.33301015]
[1749690146565,1.80091,2775.6,2775.0,1.33299015]
[1749690146756,0.72049,2775.2,2775.0,1.33299015]
[1749690146957,0.72049,2775.2,2775.1,0.72049]
[1749690147158,0.72049,2775.2,2775.1,1.98499]
[1749690147462,0.72046,2775.3,2775.2,0.72046]
[1749690147662,0.72046,2775.2,2775.1,1.2645]
[1749690148457,0.72046,2775.2,2775.1,1.98499]
[1749690149759,0.72046,2775.2,2775.1,1.2645]
[1749690150065,0.72046,2775.2,2775.1,1.98499]
[1749690150265,0.72049,2775.1,2775.0,1.33300015]
[1749690151464,0.72049,2775.1,2775.0,0.61250015]
[1749690151862,0.72049,2775.1,2775.0,0.00540015]
[1749690152163,0.72062,2774.6,2774.5,0.6392]
[1749690152360,0.72065,2774.5,2774.4,3.2078]
[1749690154566,0.29283242,2774.6,2774.5,0.72065]
[1749690154567,0.72063,2774.6,2774.5,0.72065]
[1749690154762,0.72065,2774.5,2774.4,3.92846]
[1749690154961,0.72065,2774.5,2774.4,3.2078]
[1749690155555,0.72064,2774.6,2774.4,3.92847]
[1749690155967,0.72065,2774.5,2774.4,3.2078]
[1749690156560,0.29524214,2774.7,2774.2,0.00540015]
[1749690156561,0.7207,2774.3,2774.2,0.00540015]
[1749690157360,1.3407,2774.3,2774.2,0.00540015]
[1749690160263,2.5733,2774.3,2774.2,0.00540015]
[1749690163565,7.78725487,2774.3,2773.1,3.2078]
[1749690163773,0.72082,2773.9,2773.8,0.72082]
[1749690164265,0.72083,2773.8,2773.6,1.92266]
[1749690164470,4.471,2774.0,2773.2,4.4376]
[1749690164668,0.72096,2773.3,2773.2,4.4376]
[1749690164871,0.72101,2773.1,2773.0,0.00540015]
[1749690165170,1.00941,2773.1,2773.0,0.00540015]
[1749690166874,1.00941,2773.1,2773.0,0.72644015]
[1749690167083,0.2884,2773.1,2773.0,0.72644015]
[1749690168281,1.00941,2773.1,2773.0,0.00540015]
[1749690168980,1.00941,2773.1,2773.0,0.72644015]
[1749690169377,1.00941,2773.1,2773.0,0.00540015]
[1749690170482,0.2884,2773.1,2773.0,0.72644015]
[1749690170884,1.00941,2773.1,2773.0,0.72644015]
[1749690171090,0.2884,2773.1,2773.0,0.72644015]
[1749690171390,1.00941,2773.1,2773.0,0.00540015]
[1749690172477,1.00941,2773.1,2773.0,0.72644015]
[1749690173080,0.2884,2773.1,2773.0,0.72644015]
[1749690173286,1.00941,2773.1,2773.0,0.72644015]
[1749690174188,1.00941,2773.1,2773.0,0.00540015]
[1749690175689,1.00941,2773.1,2773.0,0.72644015]
[1749690176290,1.00941,2773.1,2773.0,0.00540015]
[1749690180991,1.00941,2773.1,2772.3,3.2078]
[1749690180992,2.09098,2773.1,2772.3,3.2078]
[1749690181197,0.72119,2772.4,2772.3,3.2078]
[1749690181396,0.72124,2772.3,2772.2,0.72124]
[1749690181602,0.72124,2772.3,2772.2,1.1832]
[1749690181893,0.72124,2772.3,2772.1,1.93786]
[1749690181894,0.72124,2772.2,2772.1,1.2166]
[1749690183694,0.7213,2772.0,2771.9,0.00366795]
[1749690184000,0.72128,2772.1,2771.9,0.72496795]
[1749690184201,0.7213,2772.0,2771.9,0.00366795]
[1749690184592,0.7213,2772.0,2771.9,1.18666795]
[1749690184793,0.72129,2772.1,2771.9,1.90798795]
[1749690185097,0.2885,2772.2,2772.0,0.7213]
[1749690185291,0.72129,2772.1,2772.0,0.7213]
[1749690185498,0.72129,2772.1,2772.0,1.2397]
[1749690186088,0.72129,2772.1,2772.0,1.961]
[1749690186294,0.72129,2772.1,2772.0,1.2397]
[1749690187798,0.7213,2772.0,2771.9,0.00366795]
[1749690189007,0.7213,2772.0,2771.9,0.72498795]
[1749690189305,0.2885,2772.2,2772.1,0.72127]
[1749690189599,1e-08,2772.2,2772.1,17.57627]
[1749690189805,0.541,2772.5,2772.4,0.72119]
[1749690190003,0.541,2772.5,2772.4,3.92899]
[1749690190307,1.26217,2772.5,2772.4,3.92899]
[1749690190504,0.541,2772.5,2772.4,3.92899]
[1749690191208,0.72113,2772.7,2772.6,0.72114]
[1749690191406,0.72111,2772.8,2772.5,1.8482]
[1749690191601,0.72111,2772.7,2772.6,0.72112]
[1749690191803,0.7211,2772.8,2772.7,0.7211]
[1749690192106,0.6305,2772.9,2772.5,0.652]
[1749690192302,0.72114,2772.6,2772.5,0.652]
[1749690193011,0.72117,2772.5,2772.4,3.2078]
[1749690193213,0.72122,2772.3,2772.2,1.2653]
[1749690194305,0.72124,2772.2,2772.1,3.2078]
[1749690194501,3.8429,2772.5,2772.1,3.2078]
[1749690194815,0.72121,2772.4,2772.3,0.72122]
[1749690195601,0.541,2772.5,2772.1,3.2078]
[1749690195805,0.72124,2772.3,2772.2,0.72124]
[1749690196009,0.72123,2772.3,2772.2,0.72124]
[1749690196306,0.72124,2772.2,2772.1,3.92905]
[1749690196507,0.72124,2772.2,2772.1,3.2078]
[1749690197106,5.18924,2772.2,2772.1,3.2078]
[1749690198703,10.18924,2772.2,2771.9,0.00366795]
[1749690198909,0.7213,2772.0,2771.9,0.00366795]
[1749690202907,0.7213,2772.0,2771.9,0.64566795]
[1749690203817,0.7213,2772.0,2771.9,0.00366795]
[1749690205906,0.7213,2772.0,2771.9,0.72498795]
[1749690206111,0.6358,2772.4,2771.9,3.21146795]
[1749690206314,0.72124,2772.3,2772.2,0.72123]
[1749690206917,0.72125,2772.2,2772.1,0.72126]
[1749690207522,0.72127,2772.1,2772.0,2.56889]
[1749690207816,0.72127,2772.1,2772.0,1.8476]
[1749690208323,0.7213,2772.0,2771.9,0.00366795]
[1749690208521,0.7213,2772.0,2771.3,3.2078]
[1749690208522,0.72145,2771.4,2771.3,3.2078]
[1749690208719,0.72148,2771.3,2771.2,0.6473]
[1749690209419,0.72148,2771.3,2771.2,1.903]
[1749690210912,0.72153,2771.1,2771.0,0.6378]
[1749690211816,0.72151,2771.2,2771.1,0.72153]
[1749690212024,4.466,2771.4,2771.0,2.61504]
[1749690212322,0.72152,2771.2,2771.0,2.61504]
[1749690213122,0.72153,2771.1,2771.0,1.8935]
[1749690214125,0.72153,2771.1,2771.0,0.6378]
[1749690214712,0.72156,2771.0,2770.9,0.6107]
[1749690215222,0.72156,2771.0,2770.7,0.72163]
[1749690215223,0.72163,2770.7,2770.6,5.0423]
[1749690215421,0.72163,2770.7,2770.6,1.8345]
[1749690215829,1.2521,2771.3,2770.8,0.72159]
[1749690216022,0.72159,2770.9,2770.8,0.72159]
[1749690217018,0.72161,2770.8,2770.7,0.72162]
[1749690217227,0.72161,2770.8,2770.7,1.90522]
[1749690217426,0.7216,2770.9,2770.8,0.72161]
[1749690217626,0.72157,2771.0,2770.8,0.72161]
[1749690218023,0.72158,2770.9,2770.8,0.72161]
[1749690218321,0.00541057,2771.5,2771.0,0.0620172]
[1749690218526,0.72147,2771.4,2771.2,3.2078]
[1749690218722,0.72147,2771.4,2771.3,1.8937]
[1749690219027,0.72147,2771.4,2771.3,0.6392]
[1749690219229,0.72147,2771.4,2771.3,1.36068]
[1749690219431,0.72147,2771.4,2771.3,0.6392]
[1749690219928,0.72147,2771.4,2771.3,1.36068]
[1749690220931,0.00541057,2771.5,2771.4,0.72145]
[1749690221132,0.00541057,2771.5,2771.4,1.97595]
[1749690222225,0.00541057,2771.5,2771.4,6.97595]
[1749690222428,0.00541057,2771.5,2771.4,1.97595]
[1749690222628,0.72684057,2771.5,2771.4,1.2545]
[1749690223531,0.72684057,2771.5,2771.4,1.97595]
[1749690223733,0.72684057,2771.5,2771.4,1.2545]
[1749690224130,0.72684057,2771.5,2771.4,1.97595]
[1749690224528,0.00541057,2771.5,2771.4,1.97595]
[1749690225232,0.72145,2771.4,2771.3,0.6392]
[1749690226333,0.72145,2771.4,2771.3,1.36068]
[1749690226531,0.72145,2771.4,2771.3,0.6392]
[1749690226826,1.26805057,2771.5,2771.4,0.72145]
[1749690227531,1.26805057,2771.5,2771.4,1.2949]
[1749690228426,1.26805057,2771.5,2771.4,2.01635]
[1749690229533,1.26805057,2771.5,2771.4,1.2949]
[1749690229728,1.26805057,2771.5,2771.4,2.01635]
[1749690229935,0.54661057,2771.5,2771.4,2.01635]
[1749690230329,1.26804057,2771.5,2771.4,2.01635]
[1749690230851,1.26804057,2771.5,2771.4,1.2949]
[1749690231135,0.72145,2771.4,2771.3,1.36066]
[1749690231333,0.72145,2771.4,2771.3,4.56846]
[1749690231539,0.72145,2771.4,2771.3,0.6392]
[1749690232336,0.72145,2771.4,2771.3,1.36068]
[1749690232740,1.90875057,2771.5,2771.4,0.72145]
[1749690233034,1.90875057,2771.5,2771.3,0.6392]
[1749690233035,1.18731057,2771.5,2771.3,1.36066]
[1749690233240,0.72145,2771.4,2771.3,1.36066]
[1749690234135,1.18731057,2771.5,2771.2,0.72149]
[1749690234136,0.7215,2771.3,2771.2,0.72149]
[1749690234334,0.7215,2771.2,2771.1,2.5058]
[1749690234531,0.7215,2771.2,2771.1,1.2567]
[1749690234838,0.7215,2771.2,2770.6,4.464]
[1749690234839,0.72161,2770.8,2770.7,4.387]
[1749690235240,0.72161,2770.8,2770.7,3.2078]
[1749690235644,0.72163,2770.7,2770.6,0.6523]
[1749690237343,0.72166,2770.6,2770.5,0.6366]
[1749690237541,0.72169,2770.5,2770.4,3.2078]
[1749690238443,1.32369,2770.5,2770.4,3.2078]
[1749690239238,0.602,2770.5,2770.4,3.92951]
[1749690240145,1.32369,2770.5,2770.4,3.92951]
[1749690240533,1.32369,2770.5,2770.4,3.2078]
[1749690240738,1.32369,2770.5,2770.4,3.92951]
[1749690241045,1.32369,2770.5,2770.4,3.2078]
[1749690241646,0.602,2770.5,2770.4,3.92951]
[1749690242146,1.32369,2770.5,2770.4,3.92951]
[1749690242341,0.602,2770.5,2770.4,3.92951]
[1749690242739,0.602,2770.5,2770.4,0.72171]
[1749690243349,1.32369,2770.5,2770.4,0.72171]
[1749690243545,0.602,2770.5,2770.4,0.72171]
[1749690243844,5.18665,2770.7,2770.6,0.72166]
[1749690244447,0.72166,2770.6,2770.5,0.72167]
[1749690245541,0.29125222,2770.8,2770.4,3.2698172]
[1749690245542,0.72163,2770.8,2770.4,3.2698172]
[1749690245738,5.0541,2770.9,2770.5,2.00927]
[1749690246051,0.72165,2770.7,2770.6,0.72166]
[1749690246751,0.36887582,2770.8,2770.5,1.2876]
[1749690246953,0.72166,2770.6,2770.5,2.00927]
[1749690248348,0.72169,2770.5,2770.4,0.0620172]
[1749690248854,3.92949,2770.5,2770.4,0.0620172]
[1749690249354,5.20899,2770.5,2770.4,0.0620172]
[1749690251953,0.72169,2770.5,2770.4,0.0620172]
[1749690252148,5.18669,2770.5,2770.4,0.0620172]
[1749690252350,8.39449,2770.5,2770.4,0.0620172]
[1749690252752,5.18669,2770.5,2770.4,0.0620172]
[1749690253149,0.72169,2770.5,2770.4,0.0620172]
[1749690253357,0.72184,2769.9,2769.8,0.6496]
[1749690253549,1.80485,2769.6,2769.0,2.86903396]
[1749690253751,1.80485,2769.6,2768.9,1.25]
[1749690253752,0.72208,2769.0,2768.9,1.25]
[1749690254350,0.72206,2769.1,2768.9,2.5436]
[1749690254553,0.72204,2769.2,2768.9,2.5436]
[1749690255058,0.72205,2769.1,2769.0,0.72206]
[1749690255256,0.72205,2769.1,2769.0,1.2821]
[1749690255852,0.72205,2769.1,2769.0,2.00418]
[1749690256255,0.72205,2769.1,2769.0,1.2821]
[1749690257359,0.6114,2769.3,2768.9,1.25]
[1749690257360,0.72208,2769.0,2768.9,1.25]
[1749690257753,0.28527376,2769.2,2768.9,1.9721]
[1749690257953,0.6114,2769.3,2769.0,0.72208]
[1749690258154,0.72205,2769.1,2769.0,0.72208]
[1749690258357,0.72205,2769.1,2768.9,1.25]
[1749690258557,0.72208,2769.0,2768.9,4.4578]
[1749690258756,0.72208,2769.0,2768.9,1.25]
[1749690258956,0.72208,2769.0,2768.9,1.9721]
[1749690259165,0.72206,2769.1,2769.0,0.72207]
[1749690259563,0.28478385,2769.2,2768.9,1.25]
[1749690259764,0.72205,2769.1,2769.0,0.72207]
[1749690259962,0.72205,2769.2,2769.0,2.0614872]
[1749690260166,0.72205,2769.1,2769.0,2.0614872]
[1749690260967,0.72205,2769.1,2769.0,0.0620172]
[1749690262163,0.6114,2769.3,2769.0,0.0620172]
[1749690262164,1.33341,2769.3,2769.0,0.0620172]
[1749690262364,3.2078,2769.4,2769.3,0.722]
[1749690262667,0.72205,2769.1,2769.0,1.9699772]
[1749690262866,0.72204,2769.2,2769.1,0.72204]
[1749690263168,0.722,2769.3,2769.2,0.722]
[1749690263468,0.72204,2769.2,2769.0,1.2479172]
[1749690263660,0.72205,2769.1,2769.0,1.9699872]
[1749690264266,0.72205,2769.1,2769.0,1.2479172]
[1749690264456,0.72205,2769.1,2769.0,0.0620172]
[1749690264656,5.18505,2769.1,2769.0,0.0620172]
[1749690266675,0.72205,2769.1,2769.0,0.0620172]
[1749690267564,1.80525,2769.0,2768.3,3.2078]
[1749690267763,0.72223,2768.4,2768.3,3.2078]
[1749690267958,0.72222,2768.5,2768.3,3.2078]
[1749690268173,0.72223,2768.4,2768.3,4.5053]
[1749690268381,0.72223,2768.4,2768.3,3.2078]
[1749690269582,1.34369,2768.6,2768.3,3.2078]
[1749690269886,0.72221,2768.5,2768.4,1.2975]
[1749690270273,0.72223,2768.4,2768.3,3.2078]
[1749690270983,0.72226,2768.3,2768.2,0.6147]
[1749690271282,0.72229,2768.2,2768.1,0.6106]
[1749690271481,0.72227,2768.3,2768.1,0.6106]
[1749690271681,0.72229,2768.2,2768.1,1.3329]
[1749690271882,0.72228,2768.3,2768.1,1.3329]
[1749690272077,0.72229,2768.2,2768.1,0.6106]
[1749690272379,3.2078,2768.2,2767.7,0.72241]
[1749690272583,0.6403,2768.1,2767.6,5.18723]
[1749690272780,0.72242,2767.7,2767.6,4.4648]
[1749690273476,0.72242,2767.7,2767.6,3.8219]
[1749690273673,0.28930191,2767.7,2767.2,5.1193]
[1749690273878,0.72252,2767.3,2767.2,5.1193]
[1749690274280,0.72252,2767.3,2766.6,23.64871]
[1749690274281,5.0,2767.3,2766.5,3.2078]
[1749690274486,6.3416,2767.2,2766.5,3.2078]
[1749690274678,4.464,2767.1,2766.5,4.4764]
[1749690274877,4.464,2767.1,2766.7,0.72267]
[1749690275077,1.1946,2767.2,2766.6,0.632]
[1749690275274,0.72258,2767.1,2766.8,0.72265]
[1749690275474,0.35270915,2767.3,2767.0,3.2078]
[1749690275677,26.31442054,2767.5,2767.0,3.2078]
[1749690275678,21.85042054,2767.5,2767.0,3.2078]
[1749690275884,21.85042054,2767.5,2766.6,0.632]
[1749690275885,0.72262,2767.0,2766.7,0.72267]
[1749690276086,0.72264,2766.9,2766.6,4.56249]
[1749690276286,0.72265,2766.8,2766.6,3.8398]
[1749690276481,4.465,2767.1,2766.7,1.1886]
[1749690277087,0.72261,2767.0,2766.7,1.91125]
[1749690277287,0.36340113,2767.3,2766.8,1.91123]
[1749690277592,4.465,2767.2,2766.8,1.91123]
[1749690277889,5.18756,2767.2,2766.9,0.72261]
[1749690278081,0.72256,2767.2,2766.9,1.1886]
[1749690278286,0.72259,2767.1,2766.9,1.1886]
[1749690278587,0.72261,2767.0,2766.7,0.72266]
[1749690278786,4.465,2767.3,2766.7,1.1886]
[1749690278986,0.72265,2766.9,2766.7,1.1886]
[1749690279178,0.72261,2767.0,2766.7,1.1886]
[1749690279385,0.72259,2767.1,2766.7,1.1886]
[1749690279587,0.72259,2767.1,2766.8,0.72265]
[1749690279776,8.03497245,2767.3,2766.6,0.632]
[1749690279981,0.542,2767.2,2766.6,0.632]
[1749690280181,0.542,2767.2,2766.6,1.3547]
[1749690280382,0.6159,2767.1,2766.6,1.3547]
[1749690280784,0.6159,2767.1,2766.6,0.632]
[1749690280992,0.72263,2766.9,2766.7,1.95577]
[1749690281184,0.72263,2766.9,2766.7,1.2331]
[1749690281379,0.6159,2767.1,2766.7,1.2331]
[1749690281583,0.72265,2766.8,2766.7,1.2331]
[1749690281785,0.6159,2767.1,2766.7,1.95578]
[1749690282083,0.6159,2767.1,2766.7,1.2331]
[1749690282785,3.2078,2767.0,2766.1,3.2078]
[1749690282978,0.72275,2766.5,2766.1,5.642]
[1749690283185,0.72278,2766.3,2766.2,1.1838]
[1749690283383,1.8067,2766.7,2766.1,4.4582]
[1749690283593,0.72281,2766.2,2766.1,4.4582]
[1749690283990,0.72281,2766.2,2766.1,6.36482]
[1749690284395,0.72281,2766.2,2766.1,5.642]
[1749690285194,0.72281,2766.2,2766.1,6.36483]
[1749690285394,0.72281,2766.2,2766.1,5.642]
[1749690285594,0.72278,2766.4,2766.2,0.72281]
[1749690285793,0.72278,2766.4,2766.3,1.96448]
[1749690286091,0.72278,2766.4,2766.3,1.2417]
[1749690286292,3.8052,2767.0,2766.6,0.7227]
[1749690286491,0.72272,2766.6,2766.4,3.2078]
[1749690286692,0.72269,2766.7,2766.5,1.96443]
[1749690287089,0.72269,2766.7,2766.6,0.6004]
[1749690289498,0.72269,2766.7,2766.6,0.6624172]
[1749690290093,0.72269,2766.7,2766.6,0.0620172]
[1749690290892,3.2078,2767.0,2766.7,0.72266]
[1749690291200,0.72268,2766.7,2766.6,3.2698172]
[1749690291694,0.72268,2766.7,2766.6,0.0620172]
[1749690295099,3.93048,2766.7,2766.6,0.0620172]
[1749690295305,0.72268,2766.7,2766.6,0.0620172]
[1749690295605,3.93048,2766.7,2766.6,0.0620172]
[1749690295797,0.72268,2766.7,2766.6,0.0620172]
[1749690298204,1.31318,2766.7,2766.6,0.0620172]
[1749690301512,4.52098,2766.7,2766.6,0.0620172]
[1749690302502,1.31318,2766.7,2766.6,0.0620172]
[1749690302708,2.26592563,2766.7,2766.6,0.0620172]
[1749690303404,2.26597759,2766.7,2766.6,0.0620172]
[1749690304002,0.95279759,2766.7,2766.6,0.0620172]
[1749690304202,0.5421,2766.8,2766.7,0.72268]
[1749690304504,0.5421,2766.8,2766.7,3.22248]
[1749690304710,1.08470245,2767.3,2766.8,1.80663]
[1749690304900,3.2078,2767.4,2766.9,7.6738]
[1749690305100,3.2078,2767.4,2767.0,1.2094]
[1749690305299,0.00542054,2767.5,2767.4,0.72249]
[1749690305707,0.72789054,2767.5,2767.0,1.2094]
[1749690305909,0.72789054,2767.5,2767.2,3.2078]
[1749690306111,0.00542054,2767.5,2767.4,0.72249]
[1749690306409,1.01354918,2768.0,2767.4,22.5734]
[1749690306703,0.29121918,2768.0,2767.9,0.72236]
[1749690306908,0.29121918,2768.0,2767.8,7.6738]
[1749690307105,0.29121918,2768.0,2767.9,1.8945]
[1749690307408,0.72233,2768.0,2767.9,1.8945]
[1749690307805,0.29173606,2768.2,2767.9,1.8945]
[1749690308011,0.72771054,2768.2,2767.9,1.8945]
[1749690308208,0.72252,2767.3,2767.2,0.00542054]
[1749690308503,4.466,2767.5,2766.8,0.9223577]
[1749690308710,0.72261,2767.0,2766.9,1.2989]
[1749690309099,0.6117,2767.4,2766.9,9.5067]
[1749690309410,0.7224,2767.8,2767.2,3.2078]
[1749690309615,0.6117,2768.0,2767.7,3.2078]
[1749690309811,0.72233,2768.1,2767.8,2.58187]
[1749690310311,0.72232,2768.1,2767.9,0.72236]
[1749690310508,0.72232,2768.1,2767.9,1.2421]
[1749690310713,0.72232,2768.1,2767.9,1.96445]
[1749690311118,0.00542054,2768.2,2767.9,1.2421]
[1749690311307,0.00542054,2768.2,2768.1,0.72231]
[1749690312010,0.00542054,2768.2,2768.1,5.72231]
[1749690312209,0.72770054,2768.2,2768.1,1.2421]
[1749690312516,0.00542054,2768.2,2768.1,1.96441]
[1749690317812,0.00542054,2768.2,2768.1,1.2421]
[1749690318120,0.72235,2768.0,2767.8,5.80378]
[1749690318318,0.72235,2768.0,2767.8,6.40528]
[1749690318519,0.72236,2767.9,2767.8,7.69128]
[1749690318713,0.72235,2768.0,2767.8,7.69128]
[1749690319113,0.72236,2767.9,2767.8,7.69128]
[1749690319320,0.6335,2768.1,2767.9,0.72235]
[1749690319514,0.72233,2768.0,2767.9,0.72235]
[1749690319714,0.72233,2768.0,2767.8,6.9689]
[1749690319922,0.72233,2768.0,2767.9,0.72236]
[1749690320127,0.6335,2768.1,2768.0,0.72233]
[1749690320424,0.00542054,2768.2,2768.1,0.72231]
[1749690320818,0.00542054,2768.2,2768.1,0.7843272]
[1749690321424,0.00542054,2768.2,2768.1,1.3276172]
[1749690321619,0.72770054,2768.2,2768.1,1.3276172]
[1749690322624,0.72770054,2768.2,2768.1,2.0499272]
[1749690322924,0.00542054,2768.2,2768.1,2.0499272]
[1749690324020,3.2078,2768.8,2768.7,0.72215]
[1749690324229,0.72213,2768.8,2768.7,0.72215]
[1749690324418,0.72215,2768.7,2768.6,0.72218]
[1749690324625,0.72214,2768.8,2768.6,0.72218]
[1749690324925,0.72214,2768.8,2768.6,0.72216]
[1749690325320,1.00746724,2768.9,2768.5,1.2054]
[1749690325622,0.72211,2768.9,2768.8,0.72212]
[1749690325822,0.36615384,2769.0,2768.6,0.72215]